Cogmind - Beta 12 @@@ ROGUE MODE // 2023.09.18 @ 08:17:15 Player: david Result: Destroyed by G-47 Trooper with Particle Gun Performance ------------- Evolutions (2) 1000 Regions Visited (5) 1000 Robots Destroyed (87) 435 Value Destroyed (1737) 1737 Prototype IDs (7) 140 Alien Tech Used (0) 0 Bonus (46) 46 TOTAL SCORE: 4358 Bonus ------- High Alert Combat Kills 46 Cogmind --------- Core Integrity 0/550 Matter 236/300 Energy 100/100 System Corruption 0% Temperature Cool (9) Movement Core (50) Location -8/Materials Parts ------- > --- POWER (1) -------- (None) > --- PROPULSION (3) --- (None) > --- UTILITY (5) ------ (None) > --- WEAPON (2) ------- Flail > --- INVENTORY (5) ---- Advanced Beam Cannon Rocket Launcher Peak State ------------ > --- POWER ------------ Cooled Ion Engine > --- PROPULSION ------- Aluminum Leg Aluminum Leg Carbon-fiber Leg > --- UTILITY ---------- Improved Heat Sink Small Storage Unit Advanced Visual Processing Unit Power Shielding Hardened Light Armor Plating > --- WEAPON ----------- Rocket Launcher Makeshift Axe > --- INVENTORY -------- Aluminum Leg Aluminum Leg Heat Sink Improved EM Shotgun Advanced Beam Cannon Flail [Rating: 25] Favorites ----------- Power Cooled Ion Engine Engine Cooled Ion Engine Propulsion Aluminum Leg Leg Aluminum Leg Flight Unit VTOL Module Utility Heat Sink Device Heat Sink Storage Small Storage Unit Processor Advanced Visual Processing Unit Protection Power Shielding Weapon Makeshift Axe Energy Gun EM Shotgun Energy Cannon Advanced Beam Cannon Ballistic Gun Improved Assault Rifle Launcher Rocket Launcher Special Weapon Plasma Cutter Impact Weapon Flail Slashing Weapon Makeshift Axe Build | -11 -10 -10 -9 -9 -8 ------- Run | Jun Mat Min Mat Sto Mat Slots Evolved 4 | . . . 2 . 2 Power . | . . . . . . Propulsion 1 | . . . 1 . . Utility 3 | . . . 1 . 2 Weapon . | . . . . . . Parts Attached 86 | 6 25 2 12 30 11 Power 8 | 1 3 1 1 2 . Engine 8 | 1 3 1 1 2 . Core . | . . . . . . Reactor . | . . . . . . Propulsion 30 | 2 8 . 4 12 4 Treads . | . . . . . . Leg 24 | 2 4 . 4 10 4 Wheel . | . . . . . . Hover . | . . . . . . Flight 6 | . 4 . . 2 . Utility 24 | 2 6 . 4 9 3 Device 12 | 1 5 . 1 4 1 Storage 3 | 1 . . . 1 1 Processor 2 | . . . 1 . 1 Hackware . | . . . . . . Protection 7 | . 1 . 2 4 . Artifact . | . . . . . . Weapon 24 | 1 8 1 3 7 4 Energy Gun 12 | 1 4 . 2 4 1 Energy Cannon 4 | . 2 . . 2 . Ballistic Gun 1 | . . . . 1 . Ballistic Cannon . | . . . . . . Launcher 1 | . . . . . 1 Special Weapon 2 | . 2 . . . . Impact Weapon 2 | . . . . . 2 Slashing Weapon 2 | . . 1 1 . . Piercing Weapon . | . . . . . . Special Melee Weapon . | . . . . . . Unidentified Prototypes 7 | . . . 1 6 . Parts Lost 22 | . 6 . 2 2 12 Power 4 | . 3 . . . 1 Propulsion 8 | . 1 . . 1 6 Utility 5 | . . . . 1 4 Weapon 5 | . 2 . 2 . 1 Highest Loss Streak 9 | . 3 . 2 2 9 To Critical Strikes . | . . . . . . Average Slot Usage (%) 93 | . 90 100 92 97 84 Engine 11 | . 13 14 11 11 7 Leg 27 | . 19 28 33 32 22 Flight 1 | . 7 . . . . Device 17 | . 25 28 20 11 8 Storage 1 | . . . . 1 8 Processor 1 | . . . 1 . 5 Protection 10 | . . . 10 19 14 Energy Gun 8 | . 19 18 4 2 . Energy Cannon 2 | . 1 . . 7 1 Launcher 1 | . . . . . 6 Slashing Weapon 8 | . . 9 10 11 8 Naked Turns . | . . . . . . Heaviest Build 27 | 11 13 13 18 22 27 Greatest Support 35 | 20 20 20 30 30 35 Greatest Overweight (x) 3 | . 1 . . 3 3 Average Overweight (x) . | . . . . . . Largest Inventory Capacity 8 | 8 8 5 5 8 8 Average Capacity 5 | 7 5 5 5 5 7 Most Carried 7 | 4 5 5 3 5 7 Average Carried 2 | . 2 3 1 3 4 Final Capacity 8 | 8 5 5 5 5 5 Final Carried 5 | . 3 3 2 5 2 Class Distribution -------------------- 85% | Scavenger-Mutant 13% | Mutant Dominant Class ---------------- Scavenger-Mutant | -10/Materials Scavenger-Mutant | -10/Mines Scavenger-Mutant | -9/Materials Scavenger-Mutant | -9/Storage Scavenger-Mutant | -8/Materials Resources | -11 -10 -10 -9 -9 -8 ----------- Run | Jun Mat Min Mat Sto Mat Matter Collected 989 | 260 190 30 100 320 89 Remotely 10 | . . . . 10 . Salvage Created 3308 | 237 578 93 495 1498 407 Parts 200 | 23 44 7 26 78 22 Haulers Intercepted 9 | . . . 3 4 2 Recyclers Shooed 3 | . 1 . . 1 1 Parts Field Recycled . | . . . . . . Retrieved Matter . | . . . . . . Parts Self-Destructed . | . . . . . . Prevented . | . . . . . . Kills | -11 -10 -10 -9 -9 -8 ------- Run | Jun Mat Min Mat Sto Mat Combat Hostiles Destroyed 44 | . 13 3 6 18 4 Melee 22 | . . 3 5 11 3 Guns 16 | . 9 . 1 6 . Cannons 2 | . 1 . . 1 . AOE 4 | . 3 . . . 1 Classes Destroyed 13 | 3 4 . 3 1 2 Worker 6 | 2 . . . 4 . Builder 9 | . 2 2 1 2 2 Tunneler 6 | 5 . . 1 . . Hauler 9 | . . . 3 4 2 Recycler 7 | 1 1 . . 3 2 Operator 2 | . . . 1 . 1 Watcher 4 | . 2 . . 2 . Swarmer 9 | . 6 3 . . . Cutter 1 | . . . . . 1 Grunt 22 | . 7 . 4 10 1 Brawler 1 | . . . . 1 . Sentry 10 | . . . 2 7 1 Hunter 1 | . . . . . 1 Best Kill Streak 7 | 7 3 4 3 7 7 Combat Bots Only 4 | . 3 3 3 4 1 Max Kills in Single Turn 2 | 1 2 1 1 1 1 Gunslinging 1 | . 1 . . . . Exploded 2 | . 2 . . . 1 Melee 1 | . . 1 1 1 1 Uniques/NPCs Destroyed . | . . . . . . Combat | -11 -10 -10 -9 -9 -8 -------- Run | Jun Mat Min Mat Sto Mat Damage Taken 3725 | . 804 96 225 931 1669 Core 928 | . 171 24 43 134 556 Absorbed by Shields . | . . . . . . Redirected to Shielding 72 | . . . . 32 40 Regen/Repaired (Parts) 35 | . . . . 35 . Core Remaining (%) 59 | 100 . 22 . 55 . Volleys Fired 143 | 24 45 . 3 54 17 Largest 2 | 1 2 . 2 1 1 Hottest 90 | 40 90 . 90 68 68 Shots Fired 169 | 24 68 . 6 54 17 Gun 113 | 24 50 . 6 27 6 Cannon 38 | . 8 . . 27 3 Launcher 8 | . . . . . 8 Special 10 | . 10 . . . . Kinetic . | . . . . . . Thermal 48 | . 18 . . 27 3 Explosive 8 | . . . . . 8 Electromagnetic 113 | 24 50 . 6 27 6 Robot Hit Streak 13 | 4 9 . 3 13 6 Robot Miss Streak 8 | 2 8 . 1 3 2 Penetration Max . | . . . . . . Secondary Targets 1 | . 1 . . . . Max Gunslinging Chain 1 | . 1 . . . . Shots Hit Robots 195 | 15 43 6 27 83 21 Core Hits 112 | 9 25 5 13 40 20 Critical Kills 1 | . . . . 1 . Critical Parts Destroyed . | . . . . . . Critical Strikes 6 | 1 . . 1 4 . Meltdown 1 | . . . . 1 . Corrupt 1 | 1 . . . . . Sever 4 | . . . 1 3 . Melee Attacks 137 | . . 13 30 68 26 Impact 6 | . . . . . 6 Slashing 131 | . . 13 30 68 20 Piercing . | . . . . . . Sneak Attacks 20 | . . 2 6 10 2 Combat Hostiles . | . . . . . . Follow-up Attacks . | . . . . . . Damage Inflicted 6306 | 199 734 310 1153 2903 1007 Guns 1276 | 199 464 . 65 462 86 Cannons 407 | . 102 . . 264 41 Explosions 626 | . 124 . . 72 430 Melee 3953 | . . 310 1088 2105 450 Ramming . | . . . . . . Kinetic . | . . . . . . Thermal 683 | . 270 . . 336 77 Explosive 394 | . . . . . 394 Electromagnetic 1276 | 199 464 . 65 462 86 Impact 128 | . . . . . 128 Slashing 3825 | . . 310 1088 2105 322 Piercing . | . . . . . . Highest Corruption . | . . . . . . Average Corruption . | . . . . . . Corruption Purged . | . . . . . . Corruption Blocked . | . . . . . . Overload Shots . | . . . . . . Overflow Damage 477 | . 2 50 119 273 33 Projectiles 3 | . 2 . . 1 . Explosions . | . . . . . . Melee 474 | . . 50 119 272 33 Knockbacks 1 | . . . . . 1 Impact 1 | . . . . . 1 Kinetic . | . . . . . . Secondary . | . . . . . . Self-Inflicted Damage 140 | . 23 . . 70 47 Shots 4 | . 1 . . 2 1 Rammed . | . . . . . . Targets Rammed . | . . . . . . Kicked . | . . . . . . Crushed . | . . . . . . Highest Temperature 198 | . 198 . 45 29 6 Average Temperature 49 | . 64 . 25 10 3 Received Heat Transfer 969 | . 252 12 126 318 261 Siege Activations . | . . . . . . Robots Corrupted . | . . . . . . Combat Hostiles . | . . . . . . Parts Fried 4 | 1 1 . . 2 . Impact Corruptions 1 | . . . . . 1 Robots Melted 1 | . . . . 1 . Combat Hostiles . | . . . . . . Parts Melted 5 | . . . . 5 . Heat Transferred 1138 | . 433 . . 581 124 Parts Sabotaged . | . . . . . . Parts Stolen . | . . . . . . Parts Stripped . | . . . . . . Power Chain Reactions 6 | . 3 . . 2 1 Missiles Intercepted . | . . . . . . Alert | -11 -10 -10 -9 -9 -8 ------- Run | Jun Mat Min Mat Sto Mat Peak Influence 504 | 40 283 196 181 504 275 Initial 212 | . 26 86 76 57 212 Average 179 | 19 138 138 108 292 188 Maximum Alert Level 2 | . 1 . . 2 1 Low Security (%) 60 | 100 74 100 100 19 32 Level 1 33 | . 25 . . 59 67 Level 2 5 | . . . . 20 . Level 3 . | . . . . . . Level 4 . | . . . . . . Level 5 . | . . . . . . High Security . | . . . . . . Max Security . | . . . . . . Squads Dispatched 11 | . 3 . 2 2 4 Investigation 2 | . 1 . 1 . . Extermination . | . . . . . . Reinforcement 8 | . 2 . 1 1 4 Assault . | . . . . . . Garrison 1 | . . . . 1 . Intercept . | . . . . . . Searches Triggered . | . . . . . . Construction Impeded 1 | . . . . . 1 Haulers Reinforced . | . . . . . . Active Scanning Responses . | . . . . . . Cargo Convoy Interrupts . | . . . . . . Stealth | -11 -10 -10 -9 -9 -8 --------- Run | Jun Mat Min Mat Sto Mat Distress Signals 3 | . . . 1 1 1 Communications Jammed . | . . . . . . Distress Signals . | . . . . . . Times Spotted 76 | . 18 5 12 25 16 Peak Tracking Total 8 | . 3 3 3 3 8 Tactical Retreats 6 | . . 1 . 2 3 Traps | -11 -10 -10 -9 -9 -8 ------- Run | Jun Mat Min Mat Sto Mat Traps Triggered 1 | . 1 . . . . Indirectly . | . . . . . . Trap Hack Attempts . | . . . . . . Triggered . | . . . . . . Disarmed . | . . . . . . Reprogrammed . | . . . . . . Reused . | . . . . . . Traps Extracted . | . . . . . . Installed . | . . . . . . Triggered . | . . . . . . Machines | -11 -10 -10 -9 -9 -8 ---------- Run | Jun Mat Min Mat Sto Mat Machines Disabled 4 | . . . . 4 . Max in Single Turn 1 | . . . . 1 . Machines Repaired . | . . . . . . Machines Sabotaged . | . . . . . . Overloaded Fab Kills . | . . . . . . Hacking | -11 -10 -10 -9 -9 -8 --------- Run | Jun Mat Min Mat Sto Mat Machines Accessed 16 | . 2 . 6 8 . Terminals 11 | . 1 . 5 5 . Fabricators . | . . . . . . Repair Stations 2 | . . . . 2 . Recycling Units 2 | . 1 . . 1 . Scanalyzers 1 | . . . 1 . . Garrison Access . | . . . . . . Total Hacks 32 | . 6 . 13 13 . Successful 19 | . 4 . 7 8 . Failed 11 | . 2 . 4 5 . Catastrophic 1 | . . . . 1 . Database Lockouts 2 | . . . 2 . . Manual 1 | . . . . 1 . Terminals 21 | . 2 . 11 8 . Fabricators . | . . . . . . Repair Stations 4 | . . . . 4 . Recycling Units 5 | . 4 . . 1 . Scanalyzers 2 | . . . 2 . . Garrison Access . | . . . . . . Terminal Hacks 10 | . 1 . 5 4 . Record 4 | . . . 4 . . Open Door 2 | . . . . 2 . Emergency Access Points 1 | . . . 1 . . Locate Traps 1 | . . . . 1 . Reinforcement Status 1 | . 1 . . . . Zone Layout 1 | . . . . 1 . Fabricator Hacks . | . . . . . . Repair Station Hacks 3 | . . . . 3 . Scan Component 2 | . . . . 2 . Repair 1 | . . . . 1 . Recycling Unit Hacks 4 | . 3 . . 1 . Process 1 | . 1 . . . . Report Inventory 1 | . 1 . . . . Retrieve Matter 1 | . 1 . . . . Retrieve Components 1 | . . . . 1 . Scanalyzer 2 | . . . 2 . . Insert Component 1 | . . . 1 . . Analyze 1 | . . . 1 . . Garrison Access Hacks . | . . . . . . Unauthorized Hacks . | . . . . . . Terminals . | . . . . . . Fabricators . | . . . . . . Repair Stations . | . . . . . . Recycling Units . | . . . . . . Scanalyzers . | . . . . . . Garrison Access . | . . . . . . Data Cores Recovered . | . . . . . . Used . | . . . . . . Hacking Detections 9 | . 1 . 5 3 . Full Trace Events 1 | . . . 1 . . Feedback Events . | . . . . . . Feedback Blocked . | . . . . . . Robot Schematics Acquired . | . . . . . . Robots Built . | . . . . . . Authchips . | . . . . . . Time . | . . . . . . Total Robot Build Rating . | . . . . . . Part Schematics Acquired 1 | . . . 1 . . Parts Built . | . . . . . . Authchips . | . . . . . . Time . | . . . . . . Total Part Build Rating . | . . . . . . Parts Repaired 1 | . . . . 1 . Time 26 | . . . . 26 . Parts Recycled . | . . . . . . Recycled Matter 116 | . 116 . . . . Retrieved Matter 250 | . 250 . . . . Retrieved Components . | . . . . . . Parts Scanalyzed 1 | . . . 1 . . Part Schematics Acquired 1 | . . . 1 . . Parts Damaged . | . . . . . . Bothacking | -11 -10 -10 -9 -9 -8 ------------ Run | Jun Mat Min Mat Sto Mat Used RIF Installer . | . . . . . . Robots Hacked . | . . . . . . Non-combat . | . . . . . . Combat . | . . . . . . Robot Hacks Applied . | . . . . . . Relay Couplers Released . | . . . . . . Fabnet Peak Effective % . | . . . . . . Robots Rewired . | . . . . . . Allies Hacked . | . . . . . . Hacks Repelled . | . . . . . . Allies | -11 -10 -10 -9 -9 -8 -------- Run | Jun Mat Min Mat Sto Mat Total Allies . | . . . . . . Largest Group . | . . . . . . Highest-Rated Group . | . . . . . . Highest-Rated Ally . | . . . . . . Total Orders 2 | . . . . 2 . EXPLORE 2 | . . . . 2 . Ally Attacks . | . . . . . . Total Damage . | . . . . . . Kills . | . . . . . . Allies Corrupted . | . . . . . . Allies Melted . | . . . . . . Intel | -11 -10 -10 -9 -9 -8 ------- Run | Jun Mat Min Mat Sto Mat Robot Analysis Total . | . . . . . . Derelict Logs Recovered 1 | . . 1 . . . Drone Launches 2 | . . . . 2 . Drone Recoveries . | . . . . . . Exploration | -11 -10 -10 -9 -9 -8 ------------- Run | Jun Mat Min Mat Sto Mat Turns Passed 3652 | 165 730 367 753 1046 591 Spaces Moved 2060 | 93 500 276 428 519 244 Core 13 | 10 . . . . 3 Treads . | . . . . . . Legs 1874 | 83 329 276 428 517 241 Wheels . | . . . . . . Hover . | . . . . . . Flight 173 | . 171 . . 2 . Fastest Speed 32 | 50 32 120 120 120 120 Average Speed 115 | 112 97 120 120 120 128 Slowest Speed 260 | 120 130 120 120 260 200 Overloaded Moves . | . . . . . . Propulsion Burnouts . | . . . . . . Robots Hopped . | . . . . . . Cave-ins Triggered . | . . . . . . Exploration Rate (%) 41 | 4 56 56 37 72 21 Regions Visited 5 Branch Regions 2 Pre-discovered Areas . | . . . . . . Known Exits Taken 1 | . . . 1 . . Unknown Exits Taken 4 | 1 1 1 . 1 . Scrap Searched . | . . . . . . Spaces Dug 19 | . . . 4 9 6 Terrain Destroyed 79 | . 13 . 4 14 48 Melee 19 | . . . 4 9 6 Projectile . | . . . . . . AOE 60 | . 13 . . 5 42 Terrain Rammed . | . . . . . . Walls Destroyed . | . . . . . . Machines Disabled . | . . . . . . Actions | -11 -10 -10 -9 -9 -8 --------- Run | Jun Mat Min Mat Sto Mat Total 3021 | 130 666 299 631 818 477 Wait 475 | . 60 3 142 99 171 Move 2055 | 92 499 275 427 518 244 Hop . | . . . . . . Pick Up 75 | 7 23 3 10 26 6 Fast Attach 2 | . . . . 2 . Attach 37 | 6 12 . 5 7 7 Detach 2 | . 1 . . 1 . Swap 47 | . 13 2 7 21 4 Drop 48 | 1 13 3 7 22 2 Fire 143 | 24 45 . 3 54 17 Melee 137 | . . 13 30 68 26 Ram . | . . . . . . Kick . | . . . . . . Crush . | . . . . . . Escape Stasis . | . . . . . . Rewire . | . . . . . . Trap . | . . . . . . Miscellaneous . | . . . . . . Route ------- -11/Junkyard -10/Materials -10/Mines -9/Materials (discovered 2 exits: [*Min] / *Sto) -9/Storage -8/Materials History --------- Turn | Location | Event 4 | -11/Junkyard | Discovered new exit (range 16) 166 | -11/Junkyard | Entered Materials 259 | -10/Materials | Lost 3 parts (1p2w) 336 | -10/Materials | Discovered new exit (range 15) 447 | -10/Materials | Core integrity fell below 50% 843 | -10/Materials | Build established: Scavenger-Mutant 896 | -10/Materials | Entered Mines 1004 | -10/Mines | A weapon hastily lodged in a ceiling crevice suddenly fell to the ground 1113 | -10/Mines | Discovered new exit (range 8) 1263 | -10/Mines | Entered Materials 1263 | -9/Materials | Evolved 2 slots: Propulsion x1, Utility x1 1264 | -9/Materials | Identified exit to Storage 1659 | -9/Materials | Central database locked down 1659 | -9/Materials | Central database locked down 1953 | -9/Materials | Discovered new exit (range 16) 2016 | -9/Materials | Entered Storage 2476 | -9/Storage | Repaired Power Shielding 2894 | -9/Storage | Discovered new exit (range 16) 2965 | -9/Storage | Garrison activated, responded to threat 3062 | -9/Storage | Entered Materials 3062 | -8/Materials | Evolved 2 slots: Utility x2 3591 | -8/Materials | Lost 9 parts (1p5n3u) 3640 | -8/Materials | Core integrity fell below 50% 3647 | -8/Materials | Core integrity fell below 20% 3653 | -8/Materials | Destroyed by G-47 Trooper with Particle Gun Last Messages --------------- 03622_ K-01 Serf cleans the Atomic Centrifuge. 03624_ ALERT: Suspicious intruders detected, dispatching Cutter reinforcements to area. 03632_ Atomic Centrifuge disabled. 03633_ K-01 Serf destroyed. 03634_ Aluminum Leg destroyed. 03634_ Knocked back. 03637_ Mak. Axe severed. 03637_ K-01 Serf cleans the Terminal. 03637_ Acquired Hvy. Flail. 03638_ Critical hit (Burn: +37). 03640_ C-17 Slicer suffers critical hit (Burn). 03643_ Imp. Heat Sink severed. 03644_ Hvy. Flail severed. 03645_ K-01 Serf cleans the Atomic Centrifuge. 03647_ Sml. Storage Unit destroyed. 03647_ C-17 Slicer destroyed. 03650_ Destroyed Reaction Control System. 03650_ C-17 Slicer system corrupted by crushing effect. 03652_ C-17 Slicer knocked back. Map ----- +----------------------------------------------------+ | ???????????????????????????????# # | | ???????????????????????????????# # #### | | ???????????????????????????????# # ##### | | ???????????????????????????????# # # | | ???????????????????????????????#/""""##### + | | ???????????????????????????????# ### #???# # | | ???????????????????????????????# #?# #???# ##### | | ???????????????????????????????# #?# #???#% #"""" | | ???????????????????????????????# ###/#####%!%# | | ???????????????????????????????# ## [#[==# | | ???????????????????????????????# ## #=%=# | | ???????????????????????????????# ## "" %/ =!+ | | ?????????????? ###+############ ## """ "% # | | ????????????? # """ # %# # | | ????????????????# # " ##### | | ????????????????# """"" """ ######## #??? | | ????????????????# ""T"" """ #?????# ##??? | | ????????????????# """ #????# ##??? | | ????????????????# g #????## #??? | | ???????????????"" g #????? # ##??? | | ??????????????"Y """ """ """ #???? % = ???? | | ???????????????"" """ "" """ #??? "" ! ??? | | ????????????????# """ "" """ u# !] Y"# # ?? | | ????????????????# c] + ""# # ?? | | ????????????????# kc% #? ! =# # ? | | ????????????????#! """ /@//= ! # ?? | | ????????????????# """ /// ##???? # ## ## | | ????????????????? """ // #????# # # = ? | | ????????????????? u#????## ? | | ????????????????# g ??? # ?? | | ????????????????####+######+###a ####??# ? ?? | | ??????????????????????????????? #?????? ???? | | ??????????????????????????????? #??????? ????? | | ??????????????????????????????? #??????????????? | | ???????????????????????????????? #??????????????? | | ???????????????????????????????? #??????????????? | | ?????????????????????????????????????????????????? | | ?????????????????????????????????????????????????? | | ?????????????????????????????????????????????????? | | ?????????????????????????????????????????????????? | | ?????????????????????????????????????????????????? | | ?????????????????????????????????????????????????? | | ?????????????????????????????????????????????????? | | ?????????????????????????????????????????????????? | | ?????????????????????????????????????????????????? | | ?????????????????????????????????????????????????? | | ?????????????????????????????????????????????????? | | ?????????????????????????????????????????????????? | | ?????????????????????????????????????????????????? | | ?????????????????????????????????????????????????? | +----------------------------------------------------+ Best States ------------- Heat Dissipation 45 Coolant Potential 100 Energy Generation 14 Energy Capacity 280 Matter Stores 300 Matter Capacity 300 Sight Range 20 Robot Scan Range 14 Terrain Scan Range 16 Terrain Scan Density 85 Armor Coverage 150 Power Shielding 33 Evasion (%) 63 Item Schematics ----------------- EM Shotgun | -9/Materials | Scanalyzed Robot Schematics ------------------ None Fabricated ------------ Nothing Alien Tech Used ----------------- None Achievements -------------- None Challenges ------------ None Game ------ Seed GaussLegMatter Manual? 0 Play Time 00:59:10 Cumulative 16.7 hours Start 2023.09.18 @ 07:14:10 End 2023.09.18 @ 08:17:15 Sessions 1 Manual Loads 0 Difficulty Rogue Special Mode None Game No. 22 Rogue 22 Adventurer 0 Explorer 0 Win Type - Total 0 Types 0/0/0/0/0/0/0/0/0 Lore% 15 Gallery% 26 Achievement% 19 Wizard Run 0 Options --------- ASCII 0 Keyboard 0 Movement Mouse Keybinds 0 Fullscreen 1 Font 16/Terminus Map View 76x50 Tactical HUD 1 Map Filters NONE Filters NONE Steam 1 RUN: 87c4eead-0699-43d2-9c37-671cf1dcf0d4